Cogmind - Beta 14 @@@ ROGUE MODE // 2024.09.22 @ 19:28:41 Player: Zaros426 Result: System corrupted Performance ------------- Evolutions (4) 2000 Regions Visited (11) 2200 Robots Destroyed (186) 930 Value Destroyed (7441) 7441 Prototype IDs (41) 820 Alien Tech Used (0) 0 Bonus (4388) 4388 TOTAL SCORE: 17779 Bonus ------- High Alert Combat Kills 1117 Follower Combat Kills 921 Entered Garrisons 600 Used RIF Installer 1500 Aligned with FarCom 300 Friendly Fire -50 Cogmind --------- Core Integrity 0/850 Matter 22/300 Energy 626/740 System Corruption 108% Temperature Cool (0) Movement Treading (245) Ox1 Location -6/Factory Parts ------- > --- POWER (1) -------- Particle Reactor > --- PROPULSION (4) --- Armored Treads Improved Heavy Treads > --- UTILITY (6) ------ Huge Storage Unit Improved Energy Well Experimental Signal Interpreter Target Analyzer Core Analyzer Precision Energy Filter > --- WEAPON (4) ------- AWS/Thermal Enhanced Coil Gun Nanosword > --- INVENTORY (25) --- Coolant Network Compact Battery (200) High-capacity Matter Pod (200) Enhanced Optical Array Advanced Signal Interpreter Core Analyzer Precision Matter Filter Precision Energy Filter Hacking Suite Authchip [R/NC] Authchip [R/Combat] Authchip [R/Combat] High-powered Tractor Beam Splice Drone Bay (6/6) PSU Rigger YOLO Cannon Gauss Rifle Heavy Machine Gun Compact Mass Driver Remote Datajack Improved Plasma Cutter Heavy Mace PL-3XN's Ring of Power Peak State ------------ > --- POWER ------------ Particle Reactor > --- PROPULSION ------- Armored Treads Improved Heavy Treads > --- UTILITY ---------- Huge Storage Unit Improved Energy Well Improved Energy Well Experimental Signal Interpreter Target Analyzer Core Analyzer > --- WEAPON ----------- AWS/Thermal Enhanced Coil Gun Nanosword > --- INVENTORY -------- Coolant Network Compact Battery High-capacity Matter Pod Enhanced Optical Array Advanced Signal Interpreter Core Analyzer Precision Matter Filter Precision Energy Filter Hacking Suite Authchip [R/NC] Authchip [R/Combat] Authchip [R/Combat] High-powered Tractor Beam Splice Drone Bay PSU Rigger YOLO Cannon Gauss Rifle Heavy Machine Gun Compact Mass Driver Remote Datajack Improved Plasma Cutter Heavy Mace PL-3XN's Ring of Power [Rating: 101] Favorites ----------- Power Nuclear Core Engine Reinforced Deuterium Engine Power Core Nuclear Core Reactor Particle Reactor Propulsion Light Treads Treads Light Treads Leg Aluminum Leg Wheel Armored Huge Wheel Hover Unit Aerolev Unit Flight Unit Improved Flight Unit Utility Huge Storage Unit Device Hardlight Generator Storage Huge Storage Unit Processor Core Analyzer Hackware Hacking Suite Protection Powered Armor Weapon Autogun Energy Gun EM Pulse Gun Energy Cannon YOLO Cannon Ballistic Gun Autogun Ballistic Cannon Compact Mass Driver Launcher Improved Grenade Launcher Special Weapon Remote Datajack Impact Weapon Heavy Mace Slashing Weapon Nanosword Build | -11 -10 -10 -10 -9 -8 -8 -7 -7 -7 -7 -6 ------- Run | Yrd Mat Min Exi Min Mat Gar Fac Gar Fac Gar Fac Slots Evolved 8 | . . . . . 4 . 2 . . . 2 Power . | . . . . . . . . . . . . Propulsion 2 | . . . . . 2 . . . . . . Utility 4 | . . . . . . . 2 . . . 2 Weapon 2 | . . . . . 2 . . . . . . Parts Attached 230 | 7 12 7 1 8 51 8 8 39 14 30 45 Power 11 | 1 . 2 . . 3 . . 2 . 2 1 Engine 5 | 1 . 1 . . 1 . . 1 . 1 . Core 4 | . . 1 . . 2 . . 1 . . . Reactor 2 | . . . . . . . . . . 1 1 Propulsion 35 | 2 2 . . 4 8 2 . 3 1 8 5 Treads 31 | 2 2 . . 4 6 2 . 2 . 8 5 Leg 1 | . . . . . . . . 1 . . . Wheel 1 | . . . . . . . . . 1 . . Hover 1 | . . . . . 1 . . . . . . Flight 1 | . . . . . 1 . . . . . . Utility 57 | 2 2 3 1 1 4 . 3 8 9 3 21 Device 35 | 1 . 3 . 1 3 . 2 6 7 . 12 Storage 6 | 1 2 . 1 . . . . . . . 2 Processor 3 | . . . . . . . 1 . . . 2 Hackware 9 | . . . . . 1 . . 2 2 1 3 Protection 4 | . . . . . . . . . . 2 2 Artifact . | . . . . . . . . . . . . Weapon 127 | 2 8 2 . 3 36 6 5 26 4 17 18 Energy Gun 15 | 1 2 . . . 9 . . 1 . . 2 Energy Cannon 1 | . . . . . . . . . . . 1 Ballistic Gun 73 | 1 3 1 . 3 19 2 3 18 2 13 8 Ballistic Cannon 1 | . . . . . . . . . . . 1 Launcher 8 | . 2 . . . 1 2 1 . 1 . 1 Special Weapon 12 | . . . . . . . . 4 1 3 4 Impact Weapon 16 | . 1 1 . . 7 2 1 3 . 1 . Slashing Weapon 1 | . . . . . . . . . . . 1 Piercing Weapon . | . . . . . . . . . . . . Special Melee Weapon . | . . . . . . . . . . . . Unidentified Prototypes 17 | . . 2 . . 7 . . . . . 8 Corrupted Parts 12 | . . . . . . . . . . . 12 System Corruption 100 | . . . . . . . . . . . 100 Parts Lost 23 | . . . . . 1 1 1 5 . 3 12 Power 3 | . . . . . 1 . . 1 . . 1 Propulsion 8 | . . . . . . 1 . 2 . 1 4 Utility 8 | . . . . . . . . 1 . 1 6 Weapon 4 | . . . . . . . 1 1 . 1 1 Highest Loss Streak 10 | . . . . . 1 1 1 2 . 1 10 To Critical Strikes . | . . . . . . . . . . . . Average Slot Usage (%) 96 | . 99 100 74 99 98 99 99 97 95 96 93 Engine 3 | . 14 10 . . . . . 1 7 6 . Core 4 | . . 3 14 14 8 9 7 4 . . . Treads 28 | . 28 28 28 28 35 35 30 26 21 26 23 Device 11 | . 14 14 14 14 5 9 14 13 10 8 13 Storage 9 | . 14 14 14 14 9 9 7 7 7 7 6 Processor 3 | . . . . . . . 6 7 7 7 12 Hackware 1 | . . . . . 3 . . . 3 . . Energy Gun 1 | . 10 . . . 2 . . . . . . Ballistic Gun 25 | . 16 27 3 27 28 29 28 24 24 28 22 Impact Weapon 1 | . . . . . 3 5 1 2 1 . . Peak Build Rating 101 | 7 11 22 15 21 44 35 48 55 54 54 101 Average Rating 35 | 5 8 11 14 18 32 34 46 44 50 47 60 On Entrance 27 | . 7 11 15 15 19 34 35 44 46 53 48 Naked Turns . | . . . . . . . . . . . . Heaviest Build 140 | 15 32 41 88 94 106 107 105 113 116 127 140 Greatest Support 95 | 40 40 40 40 40 86 86 86 94 94 88 95 Greatest Overweight (x) 35 | . . 1 2 2 1 1 1 1 4 5 35 Average Overweight (x) 1 | . . . . 2 1 1 1 1 2 1 1 Largest Inventory Capacity 25 | 8 15 15 25 25 25 25 25 25 25 25 25 Average Capacity 22 | 7 11 15 21 25 25 25 25 25 25 25 25 Most Carried 25 | 5 15 15 20 21 25 25 25 25 25 25 25 Average Carried 21 | 2 10 14 18 19 23 24 24 24 24 24 23 Final Capacity 25 | 8 15 15 25 25 25 25 25 25 25 25 25 Final Carried 25 | 4 15 15 20 21 25 25 25 25 25 25 25 Class Distribution -------------------- 28% | Mutant 23% | Skirmisher 19% | Scavenger-Gunner 12% | Commander-Gunner 10% | Scavenger-Tank 3% | Gunner Dominant Class ---------------- Mutant | -10/Materials Mutant | -10/Mines Mutant | -10/Exiles Mutant | -9/Mines Skirmisher | -8/Materials Skirmisher | -8/Garrison Commander-Gunner | -7/Factory Scavenger-Gunner | -7/Garrison Commander-Gunner | -7/Factory Scavenger-Tank | -7/Garrison Scavenger-Gunner | -6/Factory Resources | -11 -10 -10 -10 -9 -8 -8 -7 -7 -7 -7 -6 ----------- Run | Yrd Mat Min Exi Min Mat Gar Fac Gar Fac Gar Fac Matter Collected 7040 | 294 436 164 . 192 1555 211 484 1187 376 996 1145 Remotely . | . . . . . . . . . . . . Salvage Created 7178 | 151 563 65 . . 1663 228 196 1085 329 973 1925 Parts 411 | 8 40 5 . . 98 13 5 62 24 45 111 Haulers Intercepted 9 | . 2 . . . 5 . . . 1 . 1 Recyclers Shooed 4 | . . . . . . . . . 1 . 3 Parts Field Recycled . | . . . . . . . . . . . . Retrieved Matter . | . . . . . . . . . . . . Parts Self-Destructed . | . . . . . . . . . . . . Prevented . | . . . . . . . . . . . . Kills | -11 -10 -10 -10 -9 -8 -8 -7 -7 -7 -7 -6 ------- Run | Yrd Mat Min Exi Min Mat Gar Fac Gar Fac Gar Fac Combat Hostiles Destroyed 126 | . 12 2 . . 19 11 . 27 4 20 31 Guns 104 | . 10 2 . . 19 4 . 27 4 20 18 AOE 17 | . 2 . . . . 7 . . . . 8 Classes Destroyed 17 | 2 5 . . . 4 . . 2 . 1 3 Worker 15 | . . . . . 3 . . . 3 . 9 Builder 9 | . . . . . 1 . 5 . . . 3 Tunneler 5 | 3 . 1 . . 1 . . . . . . Hauler 9 | . 2 . . . 5 . . . 1 . 1 Recycler 8 | 1 1 . . . 4 . 1 . 1 . . Operator 3 | . 1 . . . 1 . . . . . 1 Watcher 11 | . 3 . . . 4 . . . 1 . 3 Swarmer 38 | . 6 2 . . . 6 . 13 3 5 3 Grunt 48 | . 6 . . . 11 5 . 9 1 5 11 Brawler 1 | . . . . . . . . 1 . . . Duelist 3 | . . . . . . . . . . 3 . Protector 1 | . . . . . . . . . . . 1 Sentry 15 | . . . . . 7 . . 2 . 6 . Specialist 2 | . . . . . . . . . . . 2 Hunter 7 | . . . . . 1 . . . . . 6 Programmer 10 | . . . . . . . . 2 . 1 7 Heavy 1 | . . . . . . . . . . . 1 Best Kill Streak 29 | 2 5 2 . . 4 5 3 9 5 3 29 Combat Bots Only 19 | . 5 2 . . 3 5 . 9 4 3 19 Max Kills in Single Turn 3 | 2 1 1 . . 2 2 1 2 2 2 3 Gunslinging 1 | . . . . . . . . 1 1 1 . Exploded 2 | . 1 . . . . 2 . . . . 2 Melee . | . . . . . . . . . . . . Uniques/NPCs Destroyed . | . . . . . . . . . . . . Combat | -11 -10 -10 -10 -9 -8 -8 -7 -7 -7 -7 -6 -------- Run | Yrd Mat Min Exi Min Mat Gar Fac Gar Fac Gar Fac Hostile Shots Fired 781 | . 36 7 . . 70 41 4 120 29 255 219 Missed 227 | . 16 1 . . 13 11 . 46 8 65 67 Damage Taken 6494 | . 225 73 . . 870 317 78 833 315 1341 2442 Core 440 | . 45 7 . . 63 43 . 49 5 57 171 Absorbed by Shields 1371 | . . . . . 60 120 . 242 28 669 252 Regen/Repaired (Parts) 125 | . . . . . . . . . . . 125 Core Remaining (%) 85 | 100 . . . 79 . 80 . . . 84 . Volleys Fired 375 | 8 44 9 . . 86 22 1 72 17 57 59 Largest 4 | 2 2 2 . . 4 4 1 4 4 4 4 Hottest 133 | 60 60 46 . . 133 107 36 92 101 106 130 Shots Fired 1167 | 16 71 17 . . 309 69 1 199 54 209 222 Gun 1107 | 16 66 17 . . 308 62 . 174 53 206 205 Cannon 6 | . . . . . . . . . . . 6 Launcher 14 | . 5 . . . 1 7 1 . . . . Special 40 | . . . . . . . . 25 1 3 11 Kinetic 983 | 8 46 17 . . 272 62 . 162 53 206 157 Thermal 102 | . . . . . 36 . . 12 . . 54 Explosive 14 | . 5 . . . 1 7 1 . . . . Electromagnetic 28 | 8 20 . . . . . . . . . . Robot Hit Streak 25 | 3 11 5 . . 25 8 . 14 15 17 18 Robot Miss Streak 5 | 2 3 3 . . 4 4 . 5 4 5 4 Penetration Max . | . . . . . . . . . . . . Secondary Targets 15 | . . . . . 3 . . 5 2 4 1 Max Gunslinging Chain 1 | . . . . . 1 . . 1 1 1 1 Autonomous 71 | . . . . . 11 . . 12 . . 48 Shots Hit Robots 737 | 9 42 8 . . 203 33 7 127 25 146 137 Core Hits 373 | 4 28 3 . . 69 20 1 57 15 58 118 Critical Kills 6 | . . . . . . . . 1 . . 5 Critical Parts Destroyed 10 | . . . . . . . 1 1 . 2 6 Critical Strikes 19 | . 1 . . . 1 . 1 2 . 2 12 Burn 1 | . . . . . 1 . . . . . . Meltdown 3 | . . . . . . . . . . . 3 Destroy 13 | . . . . . . . . 2 . 2 9 Corrupt 1 | . 1 . . . . . . . . . . Smash 1 | . . . . . . . 1 . . . . Melee Attacks 57 | . 4 1 . . 17 8 17 6 . 4 . Impact 57 | . 4 1 . . 17 8 17 6 . 4 . Slashing . | . . . . . . . . . . . . Piercing . | . . . . . . . . . . . . Sneak Attacks 6 | . . . . . . . 6 . . . . Combat Hostiles . | . . . . . . . . . . . . Follow-up Attacks . | . . . . . . . . . . . . Damage Inflicted 16295 | 257 774 159 . . 3304 1086 504 1796 511 2571 5333 Guns 12236 | 115 529 159 . . 3244 495 . 1796 511 2571 2816 Cannons 453 | . . . . . . . . . . . 453 Explosions 3102 | 142 245 . . . 60 591 . . . . 2064 Melee 504 | . . . . . . . 504 . . . . Ramming . | . . . . . . . . . . . . Kinetic 10003 | 50 345 159 . . 2714 495 . 1480 511 2571 1678 Thermal 3823 | 142 48 . . . 530 . . 316 . . 2787 Explosive 848 | . 197 . . . 60 591 . . . . . Electromagnetic 1117 | 65 184 . . . . . . . . . 868 Impact 504 | . . . . . . . 504 . . . . Slashing . | . . . . . . . . . . . . Piercing . | . . . . . . . . . . . . Highest Corruption 108 | . 1 1 1 1 . . 1 2 3 1 108 Average Corruption 1 | . 1 1 1 1 . . 1 1 2 1 6 Corruption Purged 6 | . . . . . . . . . 5 . 1 Corruption Blocked . | . . . . . . . . . . . . Effects 74 | . 6 10 4 4 . . . 23 3 9 15 Message Errors 14 | . . 2 . 1 . . . 2 . 4 5 Matter Fused 24 | . 4 3 2 1 . . . 11 1 . 2 Heat Flow Errors 6 | . 1 1 . . . . . 2 . 1 1 Energy Discharges 11 | . 1 2 1 . . . . 2 1 2 2 Data Loss (minor) 10 | . . 1 . 1 . . . 4 1 2 1 Data Loss (major) 2 | . . . 1 1 . . . . . . . Misfires 2 | . . . . . . . . 1 . . 1 Misdirections 1 | . . . . . . . . . . . 1 Weapon Failures 4 | . . 1 . . . . . 1 . . 2 Overload Shots . | . . . . . . . . . . . . Overflow Damage 503 | 9 . . . . 20 10 262 . . . 202 Projectiles 177 | . . . . . . . . . . . 177 Explosions 64 | 9 . . . . 20 10 . . . . 25 Melee 262 | . . . . . . . 262 . . . . Knockbacks 2 | . . . . . . . 2 . . . . Impact 2 | . . . . . . . 2 . . . . Kinetic . | . . . . . . . . . . . . Secondary . | . . . . . . . . . . . . Self-Inflicted Damage 45 | . 28 . . . . 17 . . . . . Shots 2 | . 1 . . . . 1 . . . . . Rammed . | . . . . . . . . . . . . Targets Rammed . | . . . . . . . . . . . . Kicked . | . . . . . . . . . . . . Crushed . | . . . . . . . . . . . . Highest Temperature 386 | . 212 263 . . 386 234 . 269 84 296 104 Average Temperature 72 | . 47 133 . . 58 77 . 63 26 115 36 Received Heat Transfer 1285 | . 63 . . . 338 136 . 134 39 297 278 Effects 4 | . . . . . . . . . . 4 . Energy Bleed 1 | . . . . . . . . . . 1 . Interference 3 | . . . . . . . . . . 3 . Siege Activations . | . . . . . . . . . . . . Robots Corrupted 7 | . . . . . . . 5 . . . 2 Combat Hostiles 2 | . . . . . . . . . . . 2 Parts Fried 16 | . . . . . . . 9 . . . 7 Impact Corruptions 12 | . . . . . . . 12 . . . . Robots Melted 3 | . . . . . . . . . . . 3 Combat Hostiles 3 | . . . . . . . . . . . 3 Parts Melted 9 | . . . . . . . . 2 . . 7 Heat Transferred 4026 | 100 50 . . . 999 . . 369 . . 2508 Parts Sabotaged . | . . . . . . . . . . . . Parts Stolen . | . . . . . . . . . . . . Parts Stripped . | . . . . . . . . . . . . Power Chain Reactions 5 | 2 1 . . . . . . . . . 2 Alert | -11 -10 -10 -10 -9 -8 -8 -7 -7 -7 -7 -6 ------- Run | Yrd Mat Min Exi Min Mat Gar Fac Gar Fac Gar Fac Peak Influence 1203 | 20 235 227 . . 406 711 386 1203 673 1057 1155 Initial 631 | . 13 64 . . . 263 373 84 631 338 554 Average 367 | 8 129 52 . . 121 560 264 618 559 764 525 Maximum Alert Level 4 | . 1 1 . . 2 3 1 4 2 3 4 Low Security (%) 41 | 100 82 94 . 100 78 . 49 12 . . . Level 1 17 | . 17 5 . . 20 15 50 8 . 8 49 Level 2 26 | . . . . . . 73 . 42 99 33 30 Level 3 12 | . . . . . . 11 . 31 . 58 11 Level 4 1 | . . . . . . . . 4 . . 8 Level 5 . | . . . . . . . . . . . . High Security . | . . . . . . . . . . . . Max Security . | . . . . . . . . . . . . Squads Dispatched 26 | . 2 . . . 7 . 4 . 4 . 9 Investigation 7 | . 2 . . . 2 . 1 . 2 . . Extermination 5 | . . . . . . . 1 . 2 . 2 Reinforcement 10 | . . . . . 2 . 2 . . . 6 Assault 1 | . . . . . . . . . . . 1 Garrison 3 | . . . . . 3 . . . . . . Intercept . | . . . . . . . . . . . . Searches Triggered . | . . . . . . . . . . . . Construction Impeded 1 | . . . . . . . . . . . 1 Haulers Reinforced 1 | . . . . . . . . . . . 1 Active Scanning Responses . | . . . . . . . . . . . . Cargo Convoy Interrupts 2 | . . . . . . . 1 . . . 1 Stealth | -11 -10 -10 -10 -9 -8 -8 -7 -7 -7 -7 -6 --------- Run | Yrd Mat Min Exi Min Mat Gar Fac Gar Fac Gar Fac Distress Signals 7 | . 1 . . . 5 . 1 . . . . Communications Jammed 57 | . . . . . . . . . 4 . 53 Distress Signals 51 | . . . . . . . . . 3 . 48 Times Spotted 197 | . 21 4 . . 36 11 4 36 11 24 50 Peak Tracking Total 12 | . 3 3 . . 4 5 2 8 5 4 12 Tactical Retreats 7 | . 1 1 . . 2 . . 2 . . 1 Traps | -11 -10 -10 -10 -9 -8 -8 -7 -7 -7 -7 -6 ------- Run | Yrd Mat Min Exi Min Mat Gar Fac Gar Fac Gar Fac Traps Triggered 19 | . 1 . . . . 2 1 5 2 5 3 Indirectly 3 | . . . . . . . . . . . 3 Trap Hack Attempts . | . . . . . . . . . . . . Triggered . | . . . . . . . . . . . . Disarmed . | . . . . . . . . . . . . Reprogrammed . | . . . . . . . . . . . . Reused 2 | . . . . . 2 . . . . . . Traps Extracted . | . . . . . . . . . . . . Installed 3 | . . . . . 3 . . . . . . Triggered 6 | . . . . . 2 . 2 . . . 2 Most Traps Carried 3 | . . . . 3 3 . . . . . . Machines | -11 -10 -10 -10 -9 -8 -8 -7 -7 -7 -7 -6 ---------- Run | Yrd Mat Min Exi Min Mat Gar Fac Gar Fac Gar Fac Machines Disabled 35 | . 1 . . . 1 2 . 3 1 6 21 Max in Single Turn 6 | . 1 . . . 1 1 . 1 . 1 6 Garrison Relay 7 | . . . . . . 2 . 3 . 2 . Machines Repaired . | . . . . . . . . . . . . Machines Dismantled 2 | . . . . . . . . . . 2 . Machines Sabotaged . | . . . . . . . . . . . . Overloaded Fab Kills . | . . . . . . . . . . . . Hacking | -11 -10 -10 -10 -9 -8 -8 -7 -7 -7 -7 -6 --------- Run | Yrd Mat Min Exi Min Mat Gar Fac Gar Fac Gar Fac Machines Accessed 34 | . 9 2 2 . 9 1 2 . 5 3 1 Terminals 20 | . 7 . . . 5 1 1 . 3 3 . Fabricators 1 | . . . . . . . . . . . 1 Repair Stations . | . . . . . . . . . . . . Recycling Units 4 | . 2 . . . 2 . . . . . . Scanalyzers 2 | . . . . . 1 . . . 1 . . Garrison Access 3 | . . . . . 1 . 1 . 1 . . Total Hacks 94 | . 22 2 24 . 24 2 2 . 12 5 1 Successful 55 | . 11 2 24 . 12 1 1 . 3 1 . Failed 38 | . 11 . . . 11 1 1 . 9 4 1 Catastrophic 7 | . 3 . . . 1 . 1 . 2 . . Database Lockouts 1 | . . . . . 1 . . . . . . Manual 46 | . 22 . 1 . 15 . . . 8 . . Terminals 52 | . 20 . . . 15 2 1 . 9 5 . Fabricators 1 | . . . . . . . . . . . 1 Repair Stations . | . . . . . . . . . . . . Recycling Units 4 | . 2 . . . 2 . . . . . . Scanalyzers 7 | . . . . . 6 . . . 1 . . Garrison Access 4 | . . . . . 1 . 1 . 2 . . Terminal Hacks 36 | . 4 2 24 . 3 1 . . 1 1 . Record 23 | . . . 23 . . . . . . . . Robot Schematic 1 | . 1 . . . . . . . . . . Robot Analysis 6 | . 3 . . . 2 . . . 1 . . Open Door 2 | . . 2 . . . . . . . . . Emergency Access Points 1 | . . . . . . 1 . . . . . Locate Traps 1 | . . . . . 1 . . . . . . Security Stations 1 | . . . . . . . . . . 1 . Derelict Proto ID Bank 1 | . . . 1 . . . . . . . . Fabricator Hacks . | . . . . . . . . . . . . Repair Station Hacks . | . . . . . . . . . . . . Recycling Unit Hacks . | . . . . . . . . . . . . Scanalyzer 6 | . . . . . 6 . . . . . . Insert Component 3 | . . . . . 3 . . . . . . Analyze 3 | . . . . . 3 . . . . . . Garrison Access Hacks 4 | . . . . . 1 . 1 . 2 . . Unlock Access 3 | . . . . . 1 . 1 . 1 . . Coupler Status 1 | . . . . . . . . . 1 . . Unauthorized Hacks 9 | . 7 . . . 2 . . . . . . Terminals 5 | . 5 . . . . . . . . . . Skim 5 | . 5 . . . . . . . . . . Fabricators . | . . . . . . . . . . . . Repair Stations . | . . . . . . . . . . . . Recycling Units 4 | . 2 . . . 2 . . . . . . Tunnel 4 | . 2 . . . 2 . . . . . . Scanalyzers . | . . . . . . . . . . . . Garrison Access . | . . . . . . . . . . . . Data Cores Recovered 2 | . 1 . . . 1 . . . . . . Used 1 | . . . . . 1 . . . . . . Hacking Detections 22 | . 7 . . . 6 1 1 . 4 2 1 Full Trace Events 3 | . . . . . 1 . . . 2 . . Feedback Events . | . . . . . . . . . . . . Feedback Blocked . | . . . . . . . . . . . . Robot Schematics Acquired 1 | . 1 . . . . . . . . . . Robots Built . | . . . . . . . . . . . . Authchips . | . . . . . . . . . . . . Time . | . . . . . . . . . . . . Total Robot Build Rating . | . . . . . . . . . . . . Part Schematics Acquired 3 | . . . . . 3 . . . . . . Parts Built . | . . . . . . . . . . . . Authchips . | . . . . . . . . . . . . Time . | . . . . . . . . . . . . Total Part Build Rating . | . . . . . . . . . . . . Parts Repaired . | . . . . . . . . . . . . Time . | . . . . . . . . . . . . Parts Recycled . | . . . . . . . . . . . . Recycled Matter . | . . . . . . . . . . . . Retrieved Matter . | . . . . . . . . . . . . Retrieved Components . | . . . . . . . . . . . . Parts Scanalyzed 3 | . . . . . 3 . . . . . . Part Schematics Acquired 3 | . . . . . 3 . . . . . . Parts Damaged . | . . . . . . . . . . . . Bothacking | -11 -10 -10 -10 -9 -8 -8 -7 -7 -7 -7 -6 ------------ Run | Yrd Mat Min Exi Min Mat Gar Fac Gar Fac Gar Fac Used RIF Installer 3 | . . . . . . 1 . 1 . 1 . Watcher Feeds 1 | . . . . . . . . . . 1 . Structural Interface 1 | . . . . . . . . 1 . . . Robots Hacked 15 | . . . . . . . . 6 1 3 5 Non-combat 3 | . . . . . . . . . 1 . 2 Combat 12 | . . . . . . . . 6 . 3 3 Robot Hacks Applied 17 | . . . . . . . . 6 1 3 7 parse_system 2 | . . . . . . . . . 1 . 1 purge_threat 1 | . . . . . . . . . . . 1 spike_heat 1 | . . . . . . . . 1 . . . disable_weapons 2 | . . . . . . . . 1 . 1 . streamctrl_high 1 | . . . . . . . . 1 . . . formatsys_low 2 | . . . . . . . . . . . 2 formatsys_high 8 | . . . . . . . . 3 . 2 3 Relay Couplers Released 35 | . . . . . . 9 3 15 . 8 . Machine Destruction 29 | . . . . . . 9 . 12 . 8 . Programmers 6 | . . . . . . . 3 3 . . . Attached 8 | . . . . . . . . 2 2 1 3 Fabnet Peak Effective % . | . . . . . . . . . . . . Robots Rewired 15 | . . . . . . 6 . 9 . . . Allies Hacked 2 | . . . . . . . . . . . 2 Hacks Repelled . | . . . . . . . . . . . . Allies | -11 -10 -10 -10 -9 -8 -8 -7 -7 -7 -7 -6 -------- Run | Yrd Mat Min Exi Min Mat Gar Fac Gar Fac Gar Fac Total Allies 29 | . . 1 . . . 6 . 13 . 4 5 Largest Group 11 | . . 1 . . . 6 6 11 11 2 3 Highest-Rated Group 245 | . . 31 . . . 96 96 245 245 45 157 Highest-Rated Ally 90 | . . 31 . . . 16 16 43 43 25 90 Total Orders 16 | . . . . . . . 2 2 3 . 9 STAY 4 | . . . . . . . 1 1 2 . . FOLLOW 3 | . . . . . . . 1 1 1 . . AID 4 | . . . . . . . . . . . 4 EXPLORE 3 | . . . . . . . . . . . 3 RETURN 2 | . . . . . . . . . . . 2 Ally Attacks 139 | . . 12 . . . . 21 34 23 9 40 Total Damage 3381 | . . 190 . . . . 303 868 532 239 1249 Kills 30 | . . 4 . . . . 3 6 7 2 8 Allies Corrupted . | . . . . . . . . . . . . Allies Melted . | . . . . . . . . . . . . Intel | -11 -10 -10 -10 -9 -8 -8 -7 -7 -7 -7 -6 ------- Run | Yrd Mat Min Exi Min Mat Gar Fac Gar Fac Gar Fac Robot Analysis Total 6 | . 3 . . . 2 . . . 1 . . Derelict Logs Recovered 2 | . . 2 . . . . . . . . . Drone Launches 8 | . . . . . . . . . . . 8 Drone Recoveries 6 | . . . . . . . . . . . 6 Exploration | -11 -10 -10 -10 -9 -8 -8 -7 -7 -7 -7 -6 ------------- Run | Yrd Mat Min Exi Min Mat Gar Fac Gar Fac Gar Fac Turns Passed 15105 | 205 1367 986 528 821 2907 1051 901 1818 1275 1712 1534 Spaces Moved 5823 | 105 731 571 219 250 943 374 331 593 602 623 481 Core 5 | 4 . . . . . . . . . . 1 Treads 5309 | 101 731 571 219 250 943 374 331 593 220 496 480 Legs . | . . . . . . . . . . . . Wheels 509 | . . . . . . . . . 382 127 . Hover . | . . . . . . . . . . . . Flight . | . . . . . . . . . . . . Fastest Speed 50 | 50 160 160 160 320 240 240 240 240 145 160 165 Average Speed 217 | 155 160 160 239 320 240 240 240 240 183 224 249 Slowest Speed 1800 | 160 160 240 320 320 240 240 240 240 240 560 1800 Overloaded Moves . | . . . . . . . . . . . . Propulsion Burnouts . | . . . . . . . . . . . . Robots Hopped . | . . . . . . . . . . . . Cave-ins Triggered . | . . . . . . . . . . . . Exploration Rate (%) 51 | 6 88 81 59 65 59 53 12 63 19 88 23 Regions Visited 11 Branch Regions 3 Pre-discovered Areas 9 | . 4 1 1 1 2 . . . . . . Known Exits Taken 4 | . . 1 . . 1 . 1 . 1 . . Unknown Exits Taken 4 | 1 1 . 1 1 . . . . . . . Scrap Searched 2 | . . 2 . . . . . . . . . Spaces Dug 44 | . 7 1 . . 29 . 6 1 . . . Terrain Destroyed 141 | 3 17 1 . . 30 48 19 1 . . 22 Melee 29 | . 4 1 . . 17 . 6 1 . . . Projectile 4 | . . . . . 1 . . . . . 3 AOE 108 | 3 13 . . . 12 48 13 . . . 19 Terrain Rammed . | . . . . . . . . . . . . Walls Destroyed . | . . . . . . . . . . . . Machines Disabled . | . . . . . . . . . . . . Actions | -11 -10 -10 -10 -9 -8 -8 -7 -7 -7 -7 -6 --------- Run | Yrd Mat Min Exi Min Mat Gar Fac Gar Fac Gar Fac Total 7503 | 128 850 623 224 272 1374 471 407 886 743 813 712 Wait 707 | 4 29 24 . 8 218 2 42 131 98 58 93 Move 5812 | 104 730 570 218 249 942 373 330 591 602 622 481 Hop . | . . . . . . . . . . . . Pick Up 100 | 5 19 5 3 4 19 6 5 16 4 6 8 Fast Attach 77 | 6 2 1 . . 22 . . 10 4 15 17 Attach 40 | 1 . . . 4 10 1 3 6 1 2 12 Detach 20 | . . . . 2 6 . . 1 . . 11 Swap 114 | . 10 6 1 4 20 7 5 23 9 13 16 Drop 122 | . 12 7 2 1 31 5 2 26 8 14 14 Fire 375 | 8 44 9 . . 86 22 1 72 17 57 59 Melee 57 | . 4 1 . . 17 8 17 6 . 4 . Ram . | . . . . . . . . . . . . Kick . | . . . . . . . . . . . . Crush . | . . . . . . . . . . . . Escape Stasis 14 | . . . . . . 2 2 4 . 6 . Rewire 45 | . . . . . . 45 . . . . . Trap 3 | . . . . . 3 . . . . . . Miscellaneous 17 | . . . . . . . . . . 16 1 Route ------- -11/Scrapyard -10/Materials (discovered 5 exits: *Mat x3 / *Min / [*Sub]) -10/Mines (discovered 3 exits: *Mat x2 / *Exi) -10/Exiles -9/Mines -8/Materials (discovered 4 exits: *Fac x3 / Gar) -8/Garrison -7/Factory -7/Garrison (discovered 2 exits: *Fac x2) -7/Factory (discovered 2 exits: [*Low] / Gar) -7/Garrison (discovered 3 exits: *Fac x3) -6/Factory History --------- Turn | Location | Event 3 | -11/Scrapyard | Discovered new exit (range 16) 206 | -11/Scrapyard | Entered Materials 304 | -10/Materials | Build established: Mutant 354 | -10/Materials | Discovered new exit (range 14) 625 | -10/Materials | Learned location of 1 exit from Recycling 631 | -10/Materials | Discovered new exit (range 7) 664 | -10/Materials | Identified exit to Materials 692 | -10/Materials | Learned location of 3 exits from Materials 798 | -10/Materials | Loaded intel: 11 trap records 1573 | -10/Materials | Entered Mines 1730 | -10/Mines | Received a Mining Laser from a helpful Derelict 1962 | -10/Mines | Learned location of Zion (-7) 2039 | -10/Mines | Discovered exit to Materials (range 8) 2059 | -10/Mines | Identified exit to Exiles 2120 | -10/Mines | Discovered exit to Materials (range 9) 2206 | -10/Mines | Found a damaged Exp. Sensor Array with a note attached 2212 | -10/Mines | Found Prototype Device 2300 | -10/Mines | Met a Derelict who couldn't figure out how to use a Trap Extractor 2491 | -10/Mines | Found the Drone Emporium 2501 | -10/Mines | Found Prototype Device 2501 | -10/Mines | Identified Splice Drone Bay 2506 | -10/Mines | Identified Exp. Sensor Array 2552 | -10/Mines | Deemed a non-threat by the Exiles lab entrance 2559 | -10/Mines | Entered Exiles 2603 | -10/Exiles | Met 8R-AWN 2627 | -10/Exiles | Met EX-HEX 2672 | -10/Exiles | Met EX-BIN 2690 | -10/Exiles | Aligned with FarCom system 2692 | -10/Exiles | Given EX-Vault access code 2728 | -10/Exiles | Opened EX-Vault 2741 | -10/Exiles | Found YOLO Cannon 2749 | -10/Exiles | Found AWS/Thermal 2759 | -10/Exiles | Found PSU Rigger 2834 | -10/Exiles | Warned to stay clear of 0b10 Research branches 2854 | -10/Exiles | Exiles lab attacked by MAIN.C 3055 | -10/Exiles | Discovered new exit (range 10) 3087 | -10/Exiles | Stole three prototypes: PSU Rigger, AWS/Thermal, YOLO Cannon 3087 | -10/Exiles | Entered Mines 3402 | -9/Mines | Discovered new exit (range 14) 3504 | -9/Mines | Found a hidden stash of uninstalled traps 3882 | -9/Mines | Learned location of Storage (-9) 3908 | -9/Mines | Entered Materials 3908 | -8/Materials | Evolved 4 slots: Propulsion x2, Weapon x2 3909 | -8/Materials | Identified exit to Factory 4351 | -8/Materials | Build established: Skirmisher 4449 | -8/Materials | Garrison activated, responded to threat 5366 | -8/Materials | Identified exit to Garrison 5572 | -8/Materials | Garrison activated, responded to threat 6310 | -8/Materials | Central database locked down 6783 | -8/Materials | Garrison activated, responded to threat 6815 | -8/Materials | Entered Garrison 6973 | -8/Garrison | Garrison Relay disabled 7213 | -8/Garrison | Triggered checkpoint 7384 | -8/Garrison | Installed Relay Interface Framework 7432 | -8/Garrison | Garrison Relay disabled 7705 | -8/Garrison | Triggered checkpoint 7733 | -8/Garrison | Triggered checkpoint 7801 | -8/Garrison | Discovered exit to Factory (range 13) 7830 | -8/Garrison | Build established: Commander-Skirmisher 7866 | -8/Garrison | Entered Factory 7866 | -7/Factory | Accompanied by 6 allies 7866 | -7/Factory | Evolved 2 slots: Utility x2 7868 | -7/Factory | FarCom data flow suspended 8196 | -7/Factory | Build established: Commander-Gunner 8508 | -7/Factory | Cargo convoy interrupted 8708 | -7/Factory | Lost 3 allies 8759 | -7/Factory | Identified exit to Garrison 8767 | -7/Factory | Entered Garrison 8767 | -7/Garrison | Accompanied by 2 allies 8963 | -7/Garrison | Triggered checkpoint 9025 | -7/Garrison | Lost 4 allies 9040 | -7/Garrison | Destroyed 9 combat bots 9145 | -7/Garrison | Triggered checkpoint 9145 | -7/Garrison | Triggered checkpoint 9289 | -7/Garrison | Triggered checkpoint 9337 | -7/Garrison | Garrison Relay disabled 9457 | -7/Garrison | Discovered new exit (range 12) 9718 | -7/Garrison | Garrison Relay disabled 9755 | -7/Garrison | Build established: Scavenger-Gunner 9761 | -7/Garrison | Triggered checkpoint 9849 | -7/Garrison | Triggered checkpoint 9913 | -7/Garrison | Triggered checkpoint 10053 | -7/Garrison | Expanded RIF knowledge: Structural Interface 10209 | -7/Garrison | Triggered checkpoint 10343 | -7/Garrison | Found Powered Armor 10422 | -7/Garrison | Found Powered Armor 10446 | -7/Garrison | Discovered new exit (range 10) 10498 | -7/Garrison | Garrison Relay disabled 10564 | -7/Garrison | Build established: Commander-Gunner 10585 | -7/Garrison | Entered Factory 10585 | -7/Factory | Accompanied by 11 allies 10935 | -7/Factory | Lost 4 allies 11313 | -7/Factory | Lost 3 allies 11512 | -7/Factory | Discovered new exit (range 11) 11572 | -7/Factory | Build established: Scavenger-Gunner 11860 | -7/Factory | Identified exit to Garrison 11860 | -7/Factory | Entered Garrison 12197 | -7/Garrison | Rescued a captive Derelict 12216 | -7/Garrison | Rescued a captive Derelict 12314 | -7/Garrison | Triggered checkpoint 12388 | -7/Garrison | Build established: Scavenger-Tank 12428 | -7/Garrison | Discovered new exit (range 15) 12464 | -7/Garrison | Triggered checkpoint 12607 | -7/Garrison | Garrison Relay disabled 12739 | -7/Garrison | Learned Factory security intel 12808 | -7/Garrison | Triggered checkpoint 12898 | -7/Garrison | Triggered checkpoint 13021 | -7/Garrison | Discovered new exit (range 10) 13245 | -7/Garrison | Garrison Relay disabled 13270 | -7/Garrison | Triggered checkpoint 13369 | -7/Garrison | Expanded RIF knowledge: Watcher Feeds 13555 | -7/Garrison | Discovered new exit (range 3) 13572 | -7/Garrison | Entered Factory 13572 | -6/Factory | Evolved 2 slots: Utility x2 13922 | -6/Factory | First assault squad dispatched 13969 | -6/Factory | Build established: Scavenger-Gunner 14898 | -6/Factory | Cargo convoy interrupted 14999 | -6/Factory | System corruption reached 10% 15020 | -6/Factory | Lost 10 parts (1p4n4u1w) 15026 | -6/Factory | Destroyed 19 combat bots 15057 | -6/Factory | System corruption reached 30% 15077 | -6/Factory | Found Corrupted Prototype Processor 15077 | -6/Factory | Identified Exp. Signal Interpreter 15096 | -6/Factory | Found PL-3XN's Ring of Power 15107 | -6/Factory | System corrupted Last Messages --------------- 15092_ Identified Nanosword. 15092_ Integrated Corrupted Nanosword (+10). 15092_ U-05 Engineer lays Concrete. 15093_ System corrupted: Matter fused (-8). 15093_ Dropped Gauss Rifle. 15094_ K-01 Serf collects debris. 15096_ Acquired PL-3XN's Ring of Power. 15098_ U-05 Engineer lays Concrete. 15099_ Acquired Corrupted Imp. Energy Well. 15099_ Integrated Corrupted Imp. Energy Well (+6). 15100_ K-01 Serf collects debris. 15101_ U-05 Engineer builds a Door. 15103_ U-05 Engineer lays Concrete. 15103_ K-01 Serf collects debris. 15104_ U-05 Engineer lays Concrete. 15105_ K-01 Serf collects debris. 15106_ Dropped Imp. Energy Well. 15106_ Acquired Corrupted Prc. Energy Filter. 15106_ Integrated Corrupted Prc. Energy Filter (+10). 15107_ Cogmind system terminally corrupted. Map ----- +----------------------------------------------------+ | ?????????????????????????????????????????????????? | | ?????????????????????????????????????????????????? | | ?????????????????????????????????????????????????? | | ?????????????????????????????????????????????????? | | ?????????????????????????????????????????????????? | | ?????????????????????????????????????????????????? | | ?????????????????????????????????????????????????? | | ?????????????????????????????????????????????????? | | ?????????????????????????????????????????????????? | | ?????????????????????? ??????????????????????????? | | ?????????????????????? ?????????????????????????? | | ????????????????????? ?????????????????????????? | | ????????????????????? ?"???????? #????????????? | | ????????????? ?????#?? """????? #????????????? | | ??????????? ???# ? """???? #????????????? | | ??????????? ??# ? ???? #????????????? | | ??????????#^ ^ ?# ?" " ??? #????????????? | | ??????????# ?# ??G""???? #????????????? | | ??????????# ## ?? ??? k###??????????? | | ?????????## ######+#### #??????????? | | ????????? =% ##?????????? | | ???????? =R % *%% * ????????? | | ???????? * k ????????? | | ??????? u [! ????????? | | ?????? = !! u ????????? | | ?????? ! ! %@! ????????? | | ???? %= [ !% ##?????????? | | ##### ! % = #??????????? | | # * % #??????????? | | # != #??????????? | | # [%* u * u #??????????? | | # %= = =%= #??????????? | | # [ % #??????????? | | # = k ???????????? | | # #???????????? | | # * =k ????????????? | | ##### ## = ! ????????????? | | #?#### # % %] ########### ?????????????? | | #######"#### #?????????? ??????????????? | | %=[[%| #??????????? ???????????????? | | %! !%%=%[ % #???????????? ???????????????? | | [%! = #?????????????????????????????? | | %= [ % #?????????????????????????????? | | %%=%[ #?????????????????????????????? | | !%!= #?????????????????????????????? | | =! #?????????????????????????????? | | """"#############?????????????????????????????? | | ##### ??????????????????????????????????????????? | | #???#???????????????????????????????????????????? | | %#???????????????????????????????????????????????? | +----------------------------------------------------+ Best States ------------- Heat Dissipation 51 Energy Generation 23 Energy Capacity 1140 Matter Stores 300 Matter Capacity 300 Sight Range 16 Robot Scan Range 20 Terrain Scan Density 10 Jamming Range 12 Armor Coverage 400 Evasion (%) 40 Target Analysis 5 Core Analysis 6 Recoil Reduction 4 Matter Filtering 50 Offensive Hacking 10 Relay Coupler Types 2 Relay Coupler Value 37 Authchip Count 3 Item Schematics ----------------- Transmission Jammer | -8/Materials | Scanalyzed Hardlight Generator | -8/Materials | Scanalyzed Core Analyzer | -8/Materials | Scanalyzed Robot Schematics ------------------ M-13 Machinist | -10/Materials | Hacked Fabricated ------------ Nothing Alien Tech Used ----------------- None Achievements -------------- None Challenges ------------ None Game ------ Seed ThunderZioniteJammer Manual? 0 Play Time 02:04:29 Cumulative 114.5 hours Start 2024.09.22 @ 17:11:37 End 2024.09.22 @ 19:28:41 Sessions 1 Manual Loads 0 Difficulty Rogue Special Mode None Game No. 59 Rogue 59 Adventurer 0 Explorer 0 Win Type - Total 0 Types 0/0/0/0/0/0/0/0/0 Lore% 48 Gallery% 65 Achievement% 53 Wizard Run 0 Options --------- Layout 0 ASCII 0 Keyboard 0 Movement Mouse Keybinds 0 Fullscreen 1 Font 24/Smallcaps Map View 183x50 Zoom Use 0% Tactical HUD 1 Map Filters NONE Filters NONE Steam 0 RUN: 559b9366-76b7-4b2a-b34a-3e5dbae4be9c